fUSD/lending_fUSD_20250530
["ID","MTS","AMOUNT","RATE_DAILY","PERIOD"]
[363191031,1748619105163,-429.06,0.00023835,2]
[363191032,1748619105175,-420.0,0.00023835,2]
[363191033,1748619105183,-420.0,0.00023835,2]
[363191034,1748619105193,-420.0,0.00023835,2]
[363191035,1748619105202,-758.53,0.00023835,2]
[363191036,1748619105211,-420.0,0.00023835,2]
[363191037,1748619105221,-420.0,0.00023835,2]
[363191038,1748619105230,-772.94,0.00023835,2]
[363191039,1748619105239,-420.0,0.00023835,2]
[363191040,1748619105248,-420.0,0.00023835,2]
[363191041,1748619105258,-531.11102255,0.00023835,2]
[363191042,1748619105267,-427.85,0.00023835,2]
[363191043,1748619105278,-420.0,0.00023835,2]
[363191044,1748619105287,-420.0,0.00023835,2]
[363191045,1748619105297,-456.87,0.00023835,2]
[363191046,1748619105307,-420.0,0.00023835,2]
[363191047,1748619105316,-420.0,0.00023835,2]
[363191048,1748619105325,-420.0,0.00023835,2]
[363191049,1748619105334,-420.0,0.00023835,2]
[363191050,1748619105343,-420.0,0.00023835,2]
[363191051,1748619105352,-420.0,0.00023835,2]
[363191052,1748619105361,-420.0,0.00023835,2]
[363191053,1748619105370,-420.0,0.00023835,2]
[363191054,1748619105380,-420.0,0.00023835,2]
[363191055,1748619105389,-420.0,0.00023835,2]
[363191056,1748619105398,-151.0,0.00023835,7]
[363191057,1748619105408,-151.0,0.00023835,7]
[363191058,1748619105417,-420.0,0.00023835,2]
[363191059,1748619105427,-777.89,0.00023835,2]
[363191060,1748619105436,-1819.65,0.00023835,2]
[363191061,1748619105446,-863.65,0.00023835,2]
[363191062,1748619105455,-420.0,0.00023835,2]
[363191063,1748619105464,-1212.65,0.00023835,2]
[363191064,1748619105474,-1175.81,0.00023835,2]
[363191065,1748619105483,-553.05,0.00023835,2]
[363191066,1748619105492,-796.08,0.00023835,2]
[363191067,1748619105502,-420.0,0.00023835,2]
[363191068,1748619105514,-523.03,0.00023835,2]
[363191069,1748619105524,-501.69,0.00023835,2]
[363191070,1748619105534,-1811.35,0.00023835,2]
[363191071,1748619105543,-420.0,0.00023835,2]
[363191072,1748619105552,-420.0,0.00023835,2]
[363191073,1748619105561,-822.17,0.00023835,2]
[363191074,1748619105572,-496.62,0.00023835,2]
[363191075,1748619105585,-641.0,0.00023835,2]
[363191076,1748619105595,-420.0,0.00023835,2]
[363191077,1748619105605,-847.29,0.00023835,2]
[363191078,1748619105614,-420.0,0.00023835,2]
[363191079,1748619105623,-443.43,0.00023835,2]
[363191080,1748619105632,-1102.55,0.00023835,2]
[363191081,1748619105641,-420.0,0.00023835,2]
[363191082,1748619105650,-443.13,0.00023835,2]
[363191083,1748619105659,-751.91,0.00023835,2]
[363191084,1748619105666,-420.0,0.00023835,2]
[363191085,1748619105675,-420.0,0.00023835,2]
[363191086,1748619105684,-420.0,0.00023835,2]
[363191087,1748619105694,-518.42,0.00023835,2]
[363191088,1748619105703,-1199.0,0.00023835,2]
[363191089,1748619105712,-841.83,0.00023835,2]
[363191090,1748619105722,-1711.43,0.00023835,2]
[363191091,1748619105731,-508.53,0.00023835,2]
[363191092,1748619105741,-948.67,0.00023835,2]
[363191093,1748619105750,-420.0,0.00023835,2]
[363191094,1748619105760,-610.77,0.00023835,2]
[363191095,1748619105769,-420.0,0.00023835,2]
[363191096,1748619105781,-423.52,0.00023835,2]
[363191097,1748619105791,-2171.03,0.00023835,2]
[363191098,1748619105803,-420.0,0.00023835,2]
[363191099,1748619105812,-945.97,0.00023835,2]
[363191100,1748619105821,-572.48,0.00023835,2]
[363191101,1748619105831,-1319.71,0.00023835,2]
[363191102,1748619105841,-456.76,0.00023835,2]
[363191103,1748619105850,-1456.24,0.00023835,2]
[363191104,1748619105859,-636.09,0.00023835,2]
[363191105,1748619105868,-743.92,0.00023835,2]
[363191106,1748619105879,-853.5,0.00023835,2]
[363191107,1748619105888,-1258.56,0.00023835,2]
[363191108,1748619105897,-652.14,0.00023835,2]
[363191109,1748619105907,-420.0,0.00023835,2]
[363191110,1748619105917,-569.93,0.00023835,2]
[363191111,1748619105927,-1419.49,0.00023835,2]
[363191112,1748619105936,-584.74,0.00023835,2]
[363191113,1748619105945,-755.51,0.00023835,2]
[363191114,1748619105955,-582.04,0.00023835,2]
[363191115,1748619105964,-420.0,0.00023835,2]
[363191116,1748619105973,-420.0,0.00023835,2]
[363191117,1748619105983,-420.0,0.00023835,2]
[363191118,1748619105992,-781.6,0.00023835,2]
[363191119,1748619106001,-1041.01,0.00023835,2]
[363191120,1748619106011,-1369.52,0.00023835,2]
[363191121,1748619106020,-474.65,0.00023835,2]
[363191122,1748619106029,-463.6,0.00023835,2]
[363191123,1748619106038,-1379.11,0.00023835,2]
[363191124,1748619106047,-420.0,0.00023835,2]
[363191125,1748619106056,-420.0,0.00023835,2]
[363191126,1748619106065,-666.7,0.00023835,2]
[363191127,1748619106075,-741.8,0.00023835,2]
[363191128,1748619106084,-1319.43,0.00023835,2]
[363191129,1748619106093,-576.82,0.00023835,2]
[363191130,1748619106102,-693.89,0.00023835,2]
[363191131,1748619106111,-561.65,0.00023835,2]
[363191132,1748619106121,-1160.92,0.00023835,2]
[363191133,1748619106131,-472.93,0.00023835,2]
[363191134,1748619106140,-1207.82,0.00023835,2]
[363191135,1748619106150,-1166.17,0.00023835,2]
[363191136,1748619106159,-1168.26,0.00023835,2]
[363191137,1748619106172,-420.0,0.00023835,2]
[363191138,1748619106183,-420.0,0.00023835,2]
[363191139,1748619106193,-466.98,0.00023835,2]
[363191140,1748619106203,-784.43,0.00023835,2]
[363191141,1748619106220,-723.56,0.00023835,2]
[363191142,1748619106229,-1364.89,0.00023835,2]
[363191143,1748619106238,-801.75,0.00023835,2]
[363191144,1748619106248,-604.61,0.00023835,2]
[363191145,1748619106257,-862.94,0.00023835,2]
[363191146,1748619106267,-635.16,0.00023835,2]
[363191147,1748619106276,-587.51,0.00023835,2]
[363191148,1748619106286,-1137.25,0.00023835,2]
[363191149,1748619106295,-786.55,0.00023835,2]
[363191150,1748619106304,-420.0,0.00023835,2]
[363191151,1748619106313,-523.95,0.00023835,2]
[363191152,1748619106322,-1160.03,0.00023835,2]
[363191153,1748619106331,-673.65,0.00023835,2]
[363191154,1748619106340,-931.25,0.00023835,2]
[363191155,1748619106349,-498.99649402,0.00023835,2]
[363191156,1748619106358,-420.0,0.00023835,2]
[363191157,1748619106367,-552.42,0.00023835,2]
[363191158,1748619106377,-459.7,0.00023835,2]
[363191159,1748619106386,-1724.07,0.00023835,2]
[363191160,1748619106395,-420.0,0.00023835,2]
[363191161,1748619106405,-600.48,0.00023835,2]
[363191162,1748619106414,-726.29,0.00023835,2]
[363191163,1748619106423,-472.86,0.00023835,2]
[363191164,1748619106432,-1073.36,0.00023835,2]
[363191165,1748619106441,-420.0,0.00023835,2]
[363191166,1748619106450,-832.22,0.00023835,2]
[363191167,1748619106460,-576.09,0.00023835,2]
[363191168,1748619106469,-1371.43,0.00023835,2]
[363191169,1748619106479,-1079.44,0.00023835,2]
[363191170,1748619106488,-538.33,0.00023835,2]
[363191171,1748619106498,-420.0,0.00023835,2]
[363191172,1748619106507,-971.8,0.00023835,2]
[363191173,1748619106517,-590.55,0.00023835,2]
[363191174,1748619106527,-550.23,0.00023835,2]
[363191175,1748619106536,-476.32,0.00023835,2]
[363191176,1748619106545,-523.75,0.00023835,2]
[363191177,1748619106555,-2381.24,0.00023835,2]
[363191178,1748619106564,-420.0,0.00023835,2]
[363191179,1748619106573,-420.0,0.00023835,2]
[363191180,1748619106582,-260.57635237,0.00023835,2]
[363191181,1748619106591,-1073.24,0.00023835,2]
[363191182,1748619106600,-659.08,0.00023835,2]
[363191183,1748619106610,-420.0,0.00023835,2]
[363191184,1748619106620,-420.0,0.00023835,2]
[363191185,1748619106630,-535.46,0.00023835,2]
[363191186,1748619106639,-420.0,0.00023835,2]
[363191187,1748619106649,-569.05,0.00023835,2]
[363191188,1748619106659,-420.0,0.00023835,2]
[363191189,1748619106668,-808.94,0.00023835,2]
[363191190,1748619106677,-1940.81,0.00023835,2]
[363191191,1748619106687,-463.09,0.00023835,2]
[363191192,1748619106696,-627.54,0.00023835,2]
[363191193,1748619106705,-420.0,0.00023835,2]
[363191194,1748619106714,-1123.75,0.00023835,2]
[363191195,1748619106724,-539.2,0.00023835,2]
[363191196,1748619106733,-487.89,0.00023835,2]
[363191197,1748619106743,-420.0,0.00023835,2]
[363191198,1748619106752,-420.0,0.00023835,2]
[363191199,1748619106762,-1124.04,0.00023835,2]
[363191200,1748619106771,-553.55,0.00023835,2]
[363191201,1748619106780,-157.08197758,0.00023835,2]
[363191202,1748619106790,-1448.39,0.00023835,2]
[363191203,1748619106802,-1053.3,0.00023835,2]
[363191204,1748619106811,-584.13,0.00023835,2]
[363191205,1748619106821,-420.0,0.00023835,2]
[363191206,1748619106830,-1192.82,0.00023835,2]
[363191207,1748619106841,-420.0,0.00023835,2]
[363191208,1748619106851,-613.48,0.00023835,2]
[363191209,1748619106860,-420.0,0.00023835,2]
[363191210,1748619106870,-491.19,0.00023835,2]
[363191211,1748619106880,-466.46,0.00023835,2]
[363191212,1748619106890,-561.99,0.00023835,2]
[363191213,1748619106900,-1678.06,0.00023835,2]
[363191214,1748619106909,-420.0,0.00023835,2]
[363191215,1748619106919,-420.0,0.00023835,2]
[363191216,1748619106928,-1400.08,0.00023835,2]
[363191217,1748619106938,-600.46,0.00023835,2]
[363191218,1748619106947,-626.74,0.00023835,2]
[363191219,1748619106956,-729.19,0.00023835,2]
[363191220,1748619106966,-420.0,0.00023835,2]
[363191221,1748619106975,-849.19,0.00023835,2]
[363191222,1748619106985,-1178.79,0.00023835,2]
[363191223,1748619106995,-389.97389382,0.00023835,2]
[363191224,1748619107004,-1833.03,0.00023835,2]
[363191225,1748619107014,-558.24,0.00023835,2]
[363191226,1748619107023,-633.87,0.00023835,2]
[363191227,1748619107034,-420.0,0.00023835,2]
[363191228,1748619107044,-465.46,0.00023835,2]
[363191229,1748619107053,-1085.24,0.00023835,2]
[363191230,1748619107063,-420.0,0.00023835,2]
[363191231,1748619107072,-3634.58,0.00023835,2]
[363191232,1748619107081,-2016.38,0.00023835,2]
[363191233,1748619107091,-609.8,0.00023835,2]
[363191234,1748619107101,-420.0,0.00023835,2]
[363191235,1748619107111,-1168.36,0.00023835,2]
[363191236,1748619107120,-5361.86,0.00023835,2]
[363191237,1748619107130,-420.0,0.00023835,2]
[363191238,1748619107139,-2127.16,0.00023835,2]
[363191239,1748619107149,-1484.06,0.00023835,2]
[363191240,1748619107158,-420.0,0.00023835,2]
[363191241,1748619107168,-1109.67,0.00023835,2]
[363191242,1748619107178,-614.8,0.00023835,2]
[363191243,1748619107188,-575.02,0.00023835,2]
[363191244,1748619107198,-562.44,0.00023835,2]
[363191245,1748619107208,-674.8,0.00023835,2]
[363191246,1748619107218,-1824.08,0.00023835,2]
[363191247,1748619107227,-420.0,0.00023835,2]
[363191248,1748619107238,-420.0,0.00023835,2]
[363191249,1748619107247,-904.81,0.00023835,2]
[363191250,1748619107256,-490.58,0.00023835,2]
[363191251,1748619107266,-7075.98,0.00023835,2]
[363191252,1748619107276,-420.0,0.00023835,2]
[363191253,1748619107286,-1096.87,0.00023835,2]
[363191254,1748619107296,-723.21,0.00023835,2]
[363191255,1748619107305,-420.0,0.00023835,2]
[363191256,1748619107314,-1561.66,0.00023835,2]
[363191257,1748619107323,-420.0,0.00023835,2]
[363191258,1748619107333,-9812.16,0.00023835,2]
[363191259,1748619107343,-1075.43,0.00023835,2]
[363191260,1748619107352,-1429.73,0.00023835,2]
[363191261,1748619107362,-622.82,0.00023835,2]
[363191262,1748619107371,-11863.32,0.00023835,2]
[363191263,1748619107381,-915.42,0.00023835,2]
[363191264,1748619107391,-1946.94,0.00023835,2]
[363191265,1748619107401,-420.0,0.00023835,2]
[363191266,1748619107410,-594.91,0.00023835,2]
[363191267,1748619107420,-797.36,0.00023835,2]
[363191268,1748619107430,-1167.97,0.00023835,2]
[363191269,1748619107440,-5682.0,0.00023835,2]
[363191270,1748619107449,-524.77,0.00023835,2]
[363191271,1748619107459,-1550.77,0.00023835,2]
[363191272,1748619107468,-420.0,0.00023835,2]
[363191273,1748619107479,-974.63,0.00023835,2]
[363191274,1748619107488,-655.87,0.00023835,2]
[363191275,1748619107498,-600.66,0.00023835,2]
[363191276,1748619107508,-702.81,0.00023835,2]
[363191277,1748619107518,-1024.75,0.00023835,2]
[363191278,1748619107734,-609.69,0.00023835,2]
[363191279,1748619107745,-1076.37,0.00023835,2]
[363191280,1748619107755,-420.0,0.00023835,2]
[363191281,1748619107764,-464.14,0.00023835,2]
[363191282,1748619107774,-420.0,0.00023835,2]
[363191283,1748619107785,-1708.68,0.00023835,2]
[363191284,1748619107797,-476.72,0.00023835,2]
[363191285,1748619107808,-726.29,0.00023835,2]
[363191286,1748619107817,-1013.34,0.00023835,2]
[363191287,1748619107827,-9498.11,0.00023835,2]
[363191288,1748619107837,-850.36,0.00023835,2]
[363191289,1748619107847,-829.87,0.00023835,2]
[363191290,1748619107856,-997.73,0.00023835,2]
[363191291,1748619107866,-1568.21,0.00023835,2]
[363191292,1748619107876,-717.62,0.00023835,2]
[363191293,1748619107886,-862.79,0.00023835,2]
[363191294,1748619107896,-2137.81,0.00023835,2]
[363191295,1748619107906,-657.91,0.00023835,2]
[363191296,1748619107915,-985.32,0.00023835,2]
[363191297,1748619107925,-420.0,0.00023835,2]
[363191298,1748619107935,-420.0,0.00023835,2]
[363191299,1748619107944,-541.52,0.00023835,2]
[363191300,1748619107955,-1399.41,0.00023835,2]
[363191301,1748619107964,-1150.73,0.00023835,2]
[363191302,1748619107974,-420.0,0.00023835,2]
[363191303,1748619107984,-2296.95,0.00023835,2]
[363191304,1748619107994,-420.0,0.00023835,2]
[363191305,1748619108003,-682.72,0.00023835,2]
[363191306,1748619108013,-795.59,0.00023835,2]
[363191307,1748619108022,-575.16,0.00023835,2]
[363191308,1748619108033,-3116.89,0.00023835,2]
[363191309,1748619108043,-1061.77,0.00023835,2]
[363191310,1748619108052,-1233.85,0.00023835,2]
[363191311,1748619108062,-420.0,0.00023835,2]
[363191312,1748619108072,-11481.25,0.00023835,2]
[363191313,1748619108081,-426.85,0.00023835,2]
[363191314,1748619108091,-1096.82,0.00023835,2]
[363191315,1748619108100,-857.17,0.00023835,2]
[363191316,1748619108110,-1626.19,0.00023835,2]
[363191317,1748619108121,-420.0,0.00023835,2]
[363191318,1748619108132,-634.02,0.00023835,2]
[363191319,1748619108142,-1283.49,0.00023835,2]
[363191320,1748619108151,-1507.45,0.00023835,2]
[363191321,1748619108161,-532.67,0.00023835,2]
[363191322,1748619108171,-441.96,0.00023835,2]
[363191323,1748619108181,-3197.32,0.00023835,2]
[363191324,1748619108190,-1018.57,0.00023835,2]
[363191325,1748619108200,-1122.87,0.00023835,2]
[363191326,1748619108209,-2066.87,0.00023835,2]
[363191327,1748619108219,-489.48,0.00023835,2]
[363191328,1748619108229,-461.31,0.00023835,2]
[363191329,1748619108239,-429.62,0.00023835,2]
[363191330,1748619108249,-3670.01,0.00023835,2]
[363191331,1748619108259,-508.43406595,0.00023835,2]
[363191332,1748619108269,-805.58,0.00023835,2]
[363191333,1748619108280,-1386.9,0.00023835,2]
[363191334,1748619108290,-894.1,0.00023835,2]
[363191335,1748619108300,-2960.24,0.00023835,2]
[363191336,1748619108309,-1963.11,0.00023835,2]
[363191337,1748619108319,-906.34,0.00023835,2]
[363191338,1748619108328,-7808.56,0.00023835,2]
[363191339,1748619108338,-1068.95,0.00023835,2]
[363191340,1748619108347,-975.57,0.00023835,2]
[363191341,1748619108357,-1446.02,0.00023835,2]
[363191342,1748619108367,-5878.54,0.00023835,2]
[363191343,1748619108377,-1309.89,0.00023835,2]
[363191344,1748619108387,-591.35,0.00023835,2]
[363191345,1748619108397,-4452.28,0.00023835,2]
[363191346,1748619108407,-8491.51,0.00023835,2]
[363191347,1748619108416,-982.46,0.00023835,2]
[363191348,1748619108426,-958.4,0.00023835,2]
[363191349,1748619108435,-139506.04,0.00023835,2]
[363191350,1748619108445,-1343.03,0.00023835,2]
[363191351,1748619108455,-1033.36,0.00023835,2]
[363191352,1748619108464,-657.44,0.00023835,2]
[363191353,1748619108473,-420.0,0.00023835,2]
[363191354,1748619108483,-453.46,0.00023835,2]
[363191355,1748619108492,-1032.71,0.00023835,2]
[363191356,1748619108502,-1623.73,0.00023835,2]
[363191357,1748619108511,-458.54,0.00023835,2]
[363191358,1748619108521,-3547.4,0.00023835,2]
[363191359,1748619108534,-982.85,0.00023835,2]
[363191360,1748619108544,-1005.97,0.00023835,2]
[363191361,1748619108553,-1623.36,0.00023835,2]
[363191362,1748619108563,-3804.58,0.00023835,2]
[363191363,1748619108573,-37354.79,0.00023835,2]
[363191364,1748619108583,-1215.02,0.00023835,2]
[363191365,1748619108593,-937.17,0.00023835,2]
[363191366,1748619108603,-753.84,0.00023835,2]
[363191367,1748619108613,-10069.56,0.00023835,2]
[363191368,1748619108622,-2424.56,0.00023835,2]
[363191369,1748619108632,-1684.99,0.00023835,2]
[363191370,1748619108641,-519.37,0.00023835,2]
[363191371,1748619108651,-7476.47,0.00023835,2]
[363191372,1748619108662,-628.41,0.00023835,2]
[363191373,1748619108671,-422.51,0.00023835,2]
[363191374,1748619108681,-868.93,0.00023835,2]
[363191375,1748619108690,-420.0,0.00023835,2]
[363191376,1748619108700,-1449.88,0.00023835,2]
[363191377,1748619108710,-14516.45,0.00023835,2]
[363191378,1748619108719,-4266.56,0.00023835,2]
[363191379,1748619108729,-830.49,0.00023835,2]
[363191380,1748619108739,-1548.49,0.00023835,2]
[363191381,1748619108749,-1978.38,0.00023835,2]
[363191382,1748619108759,-1884.76,0.00023835,2]
[363191383,1748619108768,-542.86,0.00023835,2]
[363191384,1748619108780,-593.44,0.00023835,2]
[363191385,1748619108790,-510.86,0.00023835,2]
[363191386,1748619108802,-420.0,0.00023835,2]
[363191387,1748619108812,-1709.24,0.00023835,2]
[363191388,1748619108822,-2758.03,0.00023835,2]
[363191389,1748619108831,-420.0,0.00023835,2]
[363191390,1748619108842,-29722.14,0.00023835,2]
[363191391,1748619108852,-881.72,0.00023835,2]
[363191392,1748619108861,-1169.42,0.00023835,2]
[363191393,1748619108871,-1406.27,0.00023835,2]
[363191394,1748619108881,-826.36,0.00023835,2]
[363191395,1748619108892,-1544.23,0.00023835,2]
[363191396,1748619108902,-1175.33,0.00023835,2]
[363191397,1748619108911,-3295.64,0.00023835,2]
[363191398,1748619108921,-1761.11,0.00023835,2]
[363191399,1748619108931,-660.71,0.00023835,2]
[363191400,1748619108941,-3573.53,0.00023835,2]
[363191401,1748619108950,-1034.84,0.00023835,2]
[363191402,1748619108959,-738.85,0.00023835,2]
[363191403,1748619108968,-1151.03,0.00023835,2]
[363191404,1748619108978,-9251.83,0.00023835,2]
[363191405,1748619108987,-772.03,0.00023835,2]
[363191406,1748619108997,-420.0,0.00023835,2]
[363191407,1748619109007,-490.63,0.00023835,2]
[363191408,1748619109017,-720.83,0.00023835,2]
[363191409,1748619109028,-1360.32,0.00023835,2]
[363191410,1748619109037,-723.88,0.00023835,2]
[363191411,1748619109047,-567.24,0.00023835,2]
[363191412,1748619109057,-2486.32,0.00023835,2]
[363191413,1748619109066,-4470.51,0.00023835,2]
[363191414,1748619109076,-1446.13,0.00023835,2]
[363191415,1748619109086,-2304.2,0.00023835,2]
[363191416,1748619109095,-1389.12,0.00023835,2]
[363191417,1748619109105,-535.20587441,0.00023835,2]
[363191418,1748619109114,-1054.71,0.00023835,2]
[363191419,1748619109124,-990.01,0.00023835,2]
[363191420,1748619109133,-1680.37,0.00023835,2]
[363191421,1748619109143,-521.76,0.00023835,2]
[363191422,1748619109152,-4095.54,0.00023835,2]
[363191423,1748619109161,-1486.66,0.00023835,2]
[363191424,1748619109170,-1336.51,0.00023835,2]
[363191425,1748619109180,-1487.37,0.00023835,2]
[363191426,1748619109190,-2771.35,0.00023835,2]
[363191427,1748619109200,-4189.49,0.00023835,2]
[363191428,1748619109209,-629.45,0.00023835,2]
[363191429,1748619109219,-2997.14,0.00023835,2]
[363191430,1748619109229,-1125.7,0.00023835,2]
[363191431,1748619109239,-1026.77,0.00023835,2]
[363191432,1748619109248,-614.16,0.00023835,2]
[363191433,1748619109259,-7561.37,0.00023835,2]
[363191434,1748619109268,-420.0,0.00023835,2]
[363191435,1748619109278,-1258.89,0.00023835,2]
[363191436,1748619109287,-1075.29,0.00023835,2]
[363191437,1748619109298,-760.57,0.00023835,2]
[363191438,1748619109309,-3180.63,0.00023835,2]
[363191439,1748619109319,-1927.78,0.00023835,2]
[363191440,1748619109328,-1656.75,0.00023835,2]
[363191441,1748619109337,-420.0,0.00023835,2]
[363191442,1748619109347,-641.68,0.00023835,2]
[363191443,1748619109357,-1318.91,0.00023835,2]
[363191444,1748619109367,-1139.98,0.00023835,2]
[363191445,1748619109377,-798.56,0.00023835,2]
[363191446,1748619109387,-1082.24,0.00023835,2]
[363191447,1748619109398,-718.05,0.00023835,2]
[363191448,1748619109409,-1074.24,0.00023835,2]
[363191449,1748619109418,-3419.97,0.00023835,2]
[363191450,1748619109428,-1239.27,0.00023835,2]
[363191451,1748619109438,-671.13,0.00023835,2]
[363191452,1748619109448,-1848.95,0.00023835,2]
[363191453,1748619109458,-2486.27,0.00023835,2]
[363191454,1748619109468,-420.0,0.00023835,2]
[363191455,1748619109478,-420.0,0.00023835,2]
[363191456,1748619109487,-1822.33,0.00023835,2]
[363191457,1748619109497,-4083.38,0.00023835,2]
[363191458,1748619109507,-1501.86,0.00023835,2]
[363191459,1748619109519,-1358.16,0.00023835,2]
[363191460,1748619109529,-4025.56,0.00023835,2]
[363191461,1748619109539,-4868.11,0.00023835,2]
[363191462,1748619109550,-2713.7,0.00023835,2]
[363191463,1748619109560,-489.31,0.00023835,2]
[363191464,1748619109570,-742.91,0.00023835,2]
[363191465,1748619109582,-703.73,0.00023835,2]
[363191466,1748619109593,-802.33,0.00023835,2]
[363191467,1748619109603,-937.93,0.00023835,2]
[363191468,1748619109613,-2531.82,0.00023835,2]
[363191469,1748619109624,-420.0,0.00023835,2]
[363191470,1748619109633,-420.0,0.00023835,2]
[363191471,1748619109644,-830.27,0.00023835,2]
[363191472,1748619109653,-420.0,0.00023835,2]
[363191473,1748619109663,-7051.39,0.00023835,2]
[363191474,1748619109673,-622.77,0.00023835,2]
[363191475,1748619109683,-1538.8,0.00023835,2]
[363191476,1748619109693,-961.82,0.00023835,2]
[363191477,1748619109703,-19030.44,0.00023835,2]
[363191478,1748619109714,-1325.56,0.00023835,2]
[363191479,1748619109724,-420.0,0.00023835,2]
[363191480,1748619109735,-2716.47,0.00023835,2]
[363191481,1748619109746,-1264.47,0.00023835,2]
[363191482,1748619109756,-420.0,0.00023835,2]
[363191483,1748619109766,-702.43,0.00023835,2]
[363191484,1748619109776,-735.86,0.00023835,2]
[363191485,1748619109786,-760.22,0.00023835,2]
[363191486,1748619109797,-2783.11,0.00023835,2]
[363191487,1748619109809,-676.42,0.00023835,2]
[363191488,1748619109820,-734.54,0.00023835,2]
[363191489,1748619109830,-1663.09,0.00023835,2]
[363191490,1748619109841,-6908.64,0.00023835,2]
[363191491,1748619109851,-450.49,0.00023835,2]
[363191492,1748619109861,-1803.22,0.00023835,2]
[363191493,1748619109871,-420.0,0.00023835,2]
[363191494,1748619109882,-807.7,0.00023835,2]
[363191495,1748619109892,-3069.28,0.00023835,2]
[363191496,1748619109903,-466.47,0.00023835,2]
[363191497,1748619109914,-420.0,0.00023835,2]
[363191498,1748619109924,-420.0,0.00023835,2]
[363191499,1748619109934,-1271.23,0.00023835,2]
[363191500,1748619109944,-1013.92,0.00023835,2]
[363191501,1748619109955,-2875.31,0.00023835,2]
[363191502,1748619109966,-727.67,0.00023836,2]
[363191503,1748619109976,-173.345781,0.00023941,7]
[363191504,1748619109986,-460.46,0.00023973,2]
[363191505,1748619109995,-460.46,0.00023973,2]
[363191506,1748619110005,-460.46,0.00023973,2]
[363191507,1748619110015,-1000.0,0.00023982,2]
[363191508,1748619110024,-4000.0,0.00024,4]
[363191509,1748619110035,-52956.67255045,0.00024,2]
[363191510,1748619110044,-60295.38626899,0.00024,2]
[363191511,1748619110054,-2110.0,0.00024,2]
[363191512,1748619110063,-5000.00369363,0.00024,5]
[363191513,1748619110073,-150.0,0.00024025,2]
[363191514,1748619110083,-980.858598,0.00024025,2]
[363191515,1748619110094,-1078.45113,0.00024025,2]
[363191516,1748619110104,-4049.5936825,0.00024038,10]
[363191517,1748619110113,-1290.14,0.0002406,2]
[363191518,1748619110122,-162.380719,0.00024094,2]
[363191519,1748619110132,-64216.83,0.000241,2]
[363191520,1748619110223,-300.0,0.00024108,2]
[363191521,1748619110235,-300.0,0.00024108,2]
[363191522,1748619110245,-420.0,0.00024109,2]
[363191523,1748619110255,-420.0,0.00024109,2]
[363191524,1748619110264,-579.42,0.00024109,2]
[363191525,1748619110274,-441.8,0.00024109,2]
[363191526,1748619110284,-591.36,0.00024109,2]
[363191527,1748619110294,-468.16,0.00024109,2]
[363191528,1748619110303,-451.1,0.00024109,2]
[363191529,1748619110314,-420.0,0.00024109,2]
[363191530,1748619110326,-420.0,0.00024109,2]